bitfinex/quotes_SOLUSD_20220117
["timestamp","ask_amount","ask_price","bid_price","bid_amount"]
[1642401356134,1.90236742,143.57,143.51,24.6277]
[1642401356434,1.90236742,143.56,143.51,24.6277]
[1642401357231,1.90236742,143.56,143.51,60.11312147]
[1642401359332,1.90236742,143.56,143.51,24.6277]
[1642401360338,42.91536609,143.55,143.49,24.5842]
[1642401360636,42.91536609,143.55,143.47,49.64560618]
[1642401360836,43.16536609,143.55,143.47,49.64560618]
[1642401361437,53.61986609,143.55,143.47,49.64560618]
[1642401361839,1.90236742,143.54,143.47,49.64560618]
[1642401362333,8.15236742,143.54,143.47,0.25]
[1642401362734,8.15236742,143.54,143.46,24.9361]
[1642401363034,1.90236742,143.53,143.46,25.1861]
[1642401363438,2.15236742,143.53,143.46,25.1861]
[1642401363941,1.90236742,143.53,143.46,25.1861]
[1642401364145,45.92108392,143.52,143.46,24.9361]
[1642401365346,45.92108392,143.52,143.46,25.1861]
[1642401366847,1.90236742,143.53,143.46,25.1861]
[1642401367047,2.15236742,143.53,143.46,25.1861]
[1642401367250,0.25,143.53,143.46,25.1861]
[1642401368252,65.22337797,143.54,143.46,25.1861]
[1642401371559,64.97337797,143.54,143.46,25.1861]
[1642401372358,18.35766742,143.54,143.46,25.1861]
[1642401372960,18.60766742,143.54,143.46,25.1861]
[1642401376488,7.90236742,143.54,143.46,25.1861]
[1642401376688,1.90236742,143.54,143.47,10.12]
[1642401376984,1.90236742,143.54,143.47,10.37]
[1642401377384,1.90236742,143.55,143.48,9.89741902]
[1642401377586,1.90236742,143.55,143.49,23.7474]
[1642401377884,1.90236742,143.55,143.49,23.9974]
[1642401378284,13.500763,143.56,143.49,23.9974]
[1642401378687,19.750763,143.56,143.49,23.7474]
[1642401379986,1.90236742,143.55,143.49,23.7474]
[1642401380389,2.15236742,143.55,143.49,23.7474]
[1642401382691,37.75496495,143.54,143.49,23.7474]
[1642401383691,43.75496495,143.54,143.49,23.7474]
[1642401383891,43.75496495,143.54,143.44,20.5743]
[1642401384092,44.00496495,143.54,143.45,23.2996]
[1642401384293,54.46026495,143.54,143.45,23.2996]
[1642401384791,56.36263237,143.54,143.45,23.2996]
[1642401385391,56.36263237,143.54,143.45,23.5496]
[1642401386092,1.90236742,143.53,143.45,23.5496]
[1642401386291,45.21623653,143.5,143.45,23.5496]
[1642401386491,51.08823653,143.5,143.45,23.5496]
[1642401386993,57.08823653,143.5,143.45,0.25]
[1642401387195,57.08823653,143.5,143.43,23.5984]
[1642401387196,51.33823653,143.5,143.43,23.5984]
[1642401387391,51.33823653,143.5,143.43,23.8484]
[1642401387592,57.33823653,143.5,143.43,23.5984]
[1642401387890,57.33823653,143.5,143.42,34.8164]
[1642401388697,67.79653653,143.5,143.42,34.8164]
[1642401389797,67.79653653,143.5,143.42,24.6964]
[1642401391195,69.69890395,143.5,143.42,24.6964]
[1642401391594,69.69890395,143.5,143.39,62.95467935]
[1642401391595,69.69890395,143.5,143.39,24.1725]
[1642401391798,69.69890395,143.5,143.39,24.4225]
[1642401391996,69.69890395,143.5,143.39,24.1725]
[1642401392197,10.4614,143.46,143.39,24.1725]
[1642401392405,25.4004,143.46,143.39,24.1725]
[1642401392602,37.79429847,143.45,143.38,33.1371]
[1642401393000,44.04429847,143.45,143.38,33.1371]
[1642401393433,44.04429847,143.45,143.38,33.3871]
[1642401393603,44.04429847,143.45,143.38,43.10914899]
[1642401394005,44.04429847,143.45,143.38,33.3871]
[1642401394206,6.25,143.45,143.38,33.3871]
[1642401394405,0.25,143.45,143.38,33.3871]
[1642401394606,16.7114,143.46,143.38,33.3871]
[1642401395206,56.08804692,143.46,143.38,72.39444165]
[1642401395808,56.08804692,143.46,143.38,72.14444165]
[1642401396411,16.7114,143.46,143.38,72.14444165]
[1642401397213,16.7114,143.46,143.38,72.39444165]
[1642401398015,16.7114,143.46,143.38,33.3871]
[1642401398215,16.7114,143.46,143.38,33.1371]
[1642401398618,16.7114,143.46,143.38,23.0171]
[1642401399016,10.7114,143.46,143.39,47.2081677]
[1642401399217,16.7114,143.46,143.39,47.2081677]
[1642401400119,16.7114,143.46,143.4,24.4094]
[1642401406652,6.25,143.46,143.4,24.4094]
[1642401406848,0.25,143.46,143.4,24.4094]
[1642401407048,6.25,143.46,143.4,24.4094]
[1642401407250,6.0,143.46,143.4,24.4094]
[1642401407448,6.25,143.46,143.4,24.4094]
[1642401407649,0.25,143.46,143.4,24.4094]
[1642401407854,6.25,143.46,143.4,24.4094]
[1642401408250,6.0,143.46,143.4,24.6594]
[1642401408448,16.4597,143.48,143.4,24.6594]
[1642401409749,16.7097,143.48,143.4,24.6594]
[1642401415756,18.61206742,143.48,143.4,24.6594]
[1642401416452,8.15236742,143.48,143.4,24.6594]
[1642401416655,7.90236742,143.48,143.4,24.6594]
[1642401417353,6.0,143.48,143.4,24.6594]
[1642401417756,7.90236742,143.49,143.4,24.6594]
[1642401417957,1.90236742,143.49,143.41,1.21221466]
[1642401418157,7.90236742,143.49,143.41,1.21221466]
[1642401418460,7.90236742,143.49,143.41,1.46221466]
[1642401418856,7.90236742,143.49,143.42,6.85524033]
[1642401419257,6.0,143.49,143.42,7.10524033]
[1642401419459,7.90236742,143.5,143.42,7.10524033]
[1642401419661,7.90236742,143.5,143.43,24.9374]
[1642401419959,8.15236742,143.5,143.43,24.9374]
[1642401420761,1.90236742,143.49,143.43,24.9374]
[1642401420965,10.4599,143.48,143.43,24.9374]
[1642401421361,16.4599,143.48,143.43,24.9374]
[1642401421762,51.8705465,143.48,143.43,24.9374]
[1642401421961,52.1205465,143.48,143.43,24.9374]
[1642401422462,52.1205465,143.48,143.38,1.98325972]
[1642401422663,54.02291392,143.48,143.38,33.0934]
[1642401423062,54.02291392,143.48,143.39,45.56983992]
[1642401423275,54.02291392,143.48,143.4,22.7513]
[1642401423663,18.61226742,143.48,143.4,23.0013]
[1642401424864,16.7099,143.48,143.4,23.0013]
[1642401425763,18.61226742,143.48,143.4,23.0013]
[1642401427268,16.7099,143.48,143.4,23.0013]
[1642401428568,18.61226742,143.48,143.4,23.0013]
[1642401428771,18.36226742,143.48,143.4,23.0013]
[1642401430377,18.61226742,143.48,143.4,23.0013]
[1642401430576,16.7099,143.48,143.4,23.0013]
[1642401431282,16.7099,143.48,143.4,22.7513]
[1642401431476,16.7099,143.48,143.37,1.98325972]
[1642401432577,42.98246617,143.45,143.36,61.18696151]
[1642401432782,10.4628,143.44,143.36,61.18696151]
[1642401432978,10.4628,143.44,143.36,61.43696151]
[1642401433181,16.7128,143.44,143.36,61.43696151]
[1642401433681,16.7128,143.44,143.36,23.7607]
[1642401438910,6.25,143.44,143.36,24.97741287]
[1642401440008,0.25,143.44,143.36,24.97741287]
[1642401440210,6.25,143.44,143.36,24.97741287]
[1642401440809,10.7128,143.44,143.36,24.97741287]
[1642401441009,16.7128,143.44,143.36,24.97741287]
[1642401453727,18.08641827,143.44,143.36,23.5107]
[1642401456129,3.6334049,143.43,143.36,23.5107]
[1642401456328,9.6334049,143.43,143.36,23.5107]
[1642401456529,10.4643,143.42,143.36,23.5107]
[1642401456932,16.7143,143.42,143.36,23.5107]
[1642401461458,16.7143,143.42,143.36,23.7607]
[1642401463567,10.7143,143.42,143.36,23.7607]
[1642401464962,16.7143,143.42,143.36,23.7607]
[1642401467066,16.4643,143.42,143.36,23.7607]
[1642401467265,16.7143,143.42,143.36,23.7607]
[1642401470076,16.7143,143.42,143.36,23.5107]
[1642401470276,16.7143,143.42,143.36,23.7607]
[1642401470981,16.7143,143.42,143.36,23.5107]
[1642401472581,1.90236742,143.41,143.36,23.5107]
[1642401472980,44.90947772,143.4,143.36,23.5107]
[1642401473381,51.15947772,143.4,143.36,23.5107]
[1642401474283,6.0,143.4,143.36,23.5107]
[1642401474684,7.90236742,143.41,143.36,23.5107]
[1642401474881,8.15236742,143.41,143.36,23.5107]
[1642401475084,6.25,143.41,143.36,23.5107]
[1642401475283,44.66994248,143.41,143.36,23.5107]
[1642401476283,12.36666742,143.42,143.36,23.5107]
[1642401476487,1.90236742,143.42,143.36,23.7607]
[1642401477487,1.90236742,143.43,143.36,23.7607]
[1642401477890,7.90236742,143.43,143.36,23.7607]
[1642401478288,8.15236742,143.43,143.36,23.7607]
[1642401478490,7.90236742,143.43,143.36,23.7607]
[1642401478691,8.15236742,143.43,143.36,23.7607]
[1642401479717,7.65236742,143.43,143.36,23.7607]
[1642401480421,6.25,143.43,143.36,23.7607]
[1642401481221,6.25,143.43,143.36,23.5107]
[1642401481722,0.25,143.43,143.36,23.5107]
[1642401481920,6.0,143.43,143.36,23.5107]
[1642401482319,1.43381346,143.42,143.36,23.5107]
[1642401482721,7.68381346,143.42,143.36,23.5107]
[1642401483619,10.4648,143.41,143.36,23.5107]
[1642401483819,16.7148,143.41,143.36,23.5107]
[1642401484020,16.7148,143.41,143.32,53.31734776]
[1642401484220,16.7148,143.41,143.33,24.3232]
[1642401484423,16.7148,143.41,143.33,24.5732]
[1642401485720,16.7148,143.41,143.27,1.21693585]
[1642401485721,69.84,143.4,143.27,1.21693585]
[1642401486020,10.4681,143.37,143.27,24.7943]
[1642401486419,16.7181,143.37,143.27,24.7943]
[1642401486619,40.77677361,143.36,143.27,61.16375814]
[1642401486819,46.77677361,143.36,143.27,61.16375814]
[1642401487021,47.02677361,143.36,143.27,61.16375814]
[1642401487218,47.02677361,143.36,143.27,61.41375814]
[1642401488121,57.49547361,143.36,143.27,61.41375814]
[1642401488419,57.49547361,143.36,143.27,61.16375814]
[1642401488620,57.49547361,143.36,143.27,25.0443]
[1642401488819,57.49547361,143.36,143.27,24.7943]
[1642401490223,57.49547361,143.36,143.27,25.0443]
[1642401492235,3.63752275,143.35,143.27,25.0443]
[1642401492427,20.35662275,143.35,143.27,25.0443]
[1642401492627,16.7191,143.35,143.27,25.0443]
[1642401492830,10.7191,143.35,143.27,25.0443]
[1642401494131,16.7191,143.35,143.27,24.7943]
[1642401504244,45.0516982,143.34,143.27,24.7943]
[1642401504443,10.4724,143.32,143.27,24.7943]
[1642401504843,16.7224,143.32,143.27,24.7943]
[1642401505745,16.7224,143.32,143.21,29.99168842]
[1642401505971,41.28207632,143.31,143.21,26.841]
[1642401506172,51.75417632,143.31,143.21,10.37]
[1642401506376,63.42817632,143.31,143.21,10.37]
[1642401506576,63.42817632,143.31,143.22,22.9915]
[1642401506978,63.42817632,143.31,143.22,23.2415]
[1642401507779,58.00417632,143.31,143.22,23.2415]
[1642401508975,81.19847632,143.31,143.22,23.2415]
[1642401509779,81.19847632,143.31,143.22,22.9915]
[1642401511582,81.19847632,143.31,143.18,33.7054]
[1642401511782,81.19847632,143.31,143.19,22.5017]
[1642401511984,10.4765,143.27,143.19,22.5017]
[1642401512483,45.33802036,143.26,143.19,22.5017]
[1642401512883,51.58802036,143.26,143.19,22.5017]
[1642401514396,10.4765,143.25,143.19,22.5017]
[1642401514787,10.7265,143.25,143.19,22.5017]
[1642401518095,16.7265,143.25,143.19,22.5017]
[1642401518295,10.7265,143.25,143.19,22.5017]
[1642401522600,0.25,143.25,143.19,22.5017]
[1642401522799,23.65227157,143.28,143.2,4.88598426]
[1642401523000,1.12757157,143.28,143.2,4.88598426]
[1642401523198,1.12757157,143.28,143.21,24.6573]
[1642401525702,1.37757157,143.28,143.21,24.6573]
[1642401526500,1.12757157,143.28,143.21,24.9073]
[1642401526702,24.2412,143.31,143.21,24.9073]
[1642401526900,24.2412,143.31,143.21,35.0273]
[1642401527701,65.17567619,143.31,143.21,35.0273]
[1642401527901,65.42567619,143.31,143.21,35.0273]
[1642401528505,10.4731,143.3,143.21,35.0273]
[1642401528906,10.7231,143.3,143.21,35.0273]
[1642401531513,10.7231,143.3,143.21,41.0273]
[1642401531715,10.7231,143.3,143.21,35.0273]
[1642401534747,10.7231,143.3,143.21,41.0273]
[1642401538444,16.7231,143.3,143.21,41.0273]
[1642401538642,24.1946,143.29,143.21,41.0273]
[1642401539042,0.25,143.29,143.21,41.0273]
[1642401540245,16.7231,143.3,143.21,41.0273]
[1642401541045,23.2192,143.29,143.21,41.0273]
[1642401541443,33.9431,143.29,143.21,41.0273]
[1642401542344,75.74969248,143.29,143.21,41.0273]
[1642401544145,81.74969248,143.29,143.21,41.0273]
[1642401544447,81.74969248,143.29,143.21,35.0273]
[1642401544648,81.74969248,143.29,143.21,24.9073]
[1642401545948,81.74969248,143.29,143.21,24.6573]
[1642401546548,75.74969248,143.29,143.21,24.6573]
[1642401546949,81.74969248,143.29,143.21,24.6573]
[1642401550150,81.74969248,143.29,143.21,24.9073]
[1642401550151,75.74969248,143.29,143.21,24.9073]
[1642401550554,33.9431,143.29,143.21,24.9073]
[1642401551152,33.6931,143.29,143.21,24.9073]
[1642401553354,33.9431,143.29,143.21,24.9073]
[1642401554455,33.9431,143.29,143.21,24.6573]
[1642401554654,71.09622441,143.29,143.21,24.6573]
[1642401554854,33.9431,143.29,143.21,24.9073]
[1642401555056,33.9431,143.29,143.21,32.1763]
[1642401555656,23.4692,143.29,143.21,32.1763]
[1642401556958,23.4692,143.29,143.21,102.0163]
[1642401557157,10.4724,143.31,143.21,102.0163]
[1642401557357,28.10717421,143.33,143.22,10.12]
[1642401557557,28.10717421,143.33,143.24,69.84]
[1642401557757,34.10717421,143.33,143.25,24.3326]
[1642401557957,30.2957,143.33,143.25,24.5826]
[1642401558157,30.2957,143.33,143.26,0.84584881]
[1642401558361,6.0,143.33,143.26,0.84584881]
[1642401558759,9.81147421,143.34,143.26,11.31334881]
[1642401558958,3.81147421,143.34,143.26,17.56334881]
[1642401559559,42.04583741,143.35,143.26,16.7175]
[1642401559759,42.29583741,143.35,143.26,6.25]
[1642401559961,42.04583741,143.35,143.26,0.25]
[1642401560160,42.29583741,143.35,143.26,6.25]
[1642401560560,42.29583741,143.35,143.26,22.5424571]
[1642401560763,42.29583741,143.35,143.27,24.1475]
[1642401561060,52.76423741,143.35,143.27,30.3975]
[1642401561959,52.51423741,143.35,143.27,24.3975]
[1642401562163,10.4684,143.35,143.27,24.3975]
[1642401563264,53.19650721,143.35,143.27,24.3975]
[1642401564665,53.44650721,143.35,143.27,24.3975]
[1642401566491,59.44650721,143.35,143.27,24.3975]
[1642401567295,59.44650721,143.35,143.27,24.1475]
[1642401568295,59.44650721,143.35,143.27,24.3975]
[1642401569093,59.44650721,143.35,143.27,24.1475]
[1642401569496,59.44650721,143.35,143.27,24.3975]
[1642401569893,83.08480721,143.35,143.27,24.3975]
[1642401570793,82.83480721,143.35,143.27,24.3975]
[1642401572096,76.83480721,143.35,143.27,24.3975]
[1642401573394,77.08480721,143.35,143.27,24.3975]
[1642401573598,83.08480721,143.35,143.27,24.3975]
[1642401574898,137.75186455,143.35,143.27,24.3975]
[1642401575298,83.08480721,143.35,143.27,24.3975]
[1642401575498,83.08480721,143.35,143.27,24.1475]
[1642401576498,83.08480721,143.35,143.25,10.12]
[1642401576699,83.08480721,143.35,143.25,10.37]
[1642401577499,84.78558309,143.35,143.24,24.2088]
[1642401577701,10.12,143.34,143.21,23.870563]
[1642401577902,10.4739,143.31,143.22,23.9129]
[1642401578101,39.03821351,143.3,143.22,23.9129]
[1642401578502,45.28821351,143.3,143.22,23.9129]
[1642401578901,45.28821351,143.3,143.22,24.1629]
[1642401579503,10.474,143.28,143.22,24.1629]
[1642401580301,42.1333133,143.27,143.22,24.1629]
[1642401580506,52.6074133,143.27,143.22,24.1629]
[1642401581703,52.6074133,143.27,143.22,23.9129]
[1642401583304,52.8574133,143.27,143.22,23.9129]
[1642401589113,10.7241,143.27,143.22,23.9129]
[1642401592123,10.4741,143.27,143.22,23.9129]
[1642401593550,53.25389,143.27,143.22,23.9129]
[1642401596153,59.25389,143.27,143.22,23.9129]
[1642401597253,59.50389,143.27,143.22,23.9129]
[1642401603368,16.7241,143.27,143.22,23.9129]
[1642401607171,18.59877972,143.27,143.22,23.9129]
[1642401610475,18.34877972,143.27,143.22,23.9129]
[1642401612678,18.34877972,143.27,143.21,23.870563]
[1642401612878,18.34877972,143.27,143.21,24.120563]
[1642401613078,18.34877972,143.27,143.21,23.870563]
[1642401614384,18.59877972,143.27,143.21,23.870563]
[1642401614584,48.10990146,143.26,143.21,23.870563]
[1642401615087,6.25,143.26,143.21,23.870563]
[1642401615285,8.12467972,143.26,143.21,23.870563]
[1642401616084,6.25,143.26,143.21,23.870563]
[1642401616285,0.25,143.26,143.21,23.870563]
[1642401616489,16.4748,143.26,143.21,23.870563]
[1642401616686,16.7248,143.26,143.21,23.870563]
[1642401616991,18.34947972,143.26,143.21,23.870563]
[1642401619118,7.87467972,143.26,143.21,23.870563]
[1642401619318,1.87467972,143.26,143.21,23.870563]
[1642401619918,1.87467972,143.26,143.21,24.120563]
[1642401620119,1.87467972,143.26,143.21,31.393563]
[1642401620919,1.87467972,143.27,143.21,31.393563]
[1642401621119,1.87467972,143.27,143.22,22.6246]
[1642401621320,1.87467972,143.27,143.22,22.8746]
[1642401621724,1.87467972,143.27,143.22,92.7146]
[1642401621923,1.87467972,143.27,143.23,10.12]
[1642401622420,1.87467972,143.28,143.24,69.84]
[1642401622620,1.87467972,143.28,143.24,76.436]
[1642401622828,1.87467972,143.28,143.24,6.846]
[1642401623022,1.87467972,143.3,143.24,6.846]
[1642401623220,1.87467972,143.3,143.24,30.8922]
[1642401624128,1.87467972,143.29,143.24,30.8922]
[1642401624727,1.87467972,143.29,143.24,30.6422]
[1642401626438,1.87467972,143.29,143.24,30.8922]
[1642401630768,1.87467972,143.29,143.24,30.6422]
[1642401630965,1.87467972,143.29,143.24,30.8922]
[1642401631365,1.87467972,143.29,143.24,30.6422]
[1642401632567,1.87467972,143.28,143.24,30.6422]
[1642401632967,1.87467972,143.28,143.24,30.8922]
[1642401634473,1.87467972,143.29,143.24,30.8922]
[1642401637472,2.12467972,143.29,143.24,30.6422]
[1642401637671,1.87467972,143.29,143.24,30.6422]
[1642401637872,1.87467972,143.29,143.24,30.8922]
[1642401639273,1.87467972,143.29,143.24,100.7322]
[1642401639477,1.87467972,143.29,143.24,106.7322]
[1642401639973,1.87467972,143.29,143.24,116.8522]
[1642401640174,5.40481048,143.33,143.26,69.84]
[1642401640373,3.81147421,143.33,143.26,76.09]
[1642401640576,3.81147421,143.33,143.26,96.6773]
[1642401640775,3.81147421,143.35,143.26,97.901563]
[1642401640976,3.81147421,143.35,143.27,24.6542]
[1642401641175,3.81147421,143.35,143.28,79.96]
[1642401641377,3.81147421,143.35,143.28,87.434263]
[1642401641978,41.20243794,143.38,143.28,87.434263]
[1642401642179,3.81147421,143.39,143.29,22.6369]
[1642401642376,3.81147421,143.39,143.29,49.4722]
[1642401642977,3.81147421,143.39,143.29,39.0069]
[1642401643177,43.24596077,143.38,143.29,39.0069]
[1642401644480,53.71246077,143.38,143.29,39.0069]
[1642401644683,53.71246077,143.38,143.29,108.8469]
[1642401644979,53.71246077,143.38,143.29,102.8469]
[1642401645979,10.4678,143.36,143.29,102.8469]
[1642401646379,37.22799617,143.35,143.29,102.8469]
[1642401646982,37.22799617,143.35,143.29,102.5969]
[1642401647183,37.22799617,143.35,143.29,102.8469]
[1642401648081,47.69659617,143.35,143.29,102.8469]
[1642401648281,47.69659617,143.35,143.29,33.0069]
[1642401648483,53.69659617,143.35,143.29,33.0069]
[1642401648685,53.69659617,143.35,143.29,22.8869]
[1642401649886,53.69659617,143.35,143.26,10.12]
[1642401649887,53.94659617,143.35,143.26,10.12]
[1642401650084,53.94659617,143.35,143.25,22.9457]
[1642401650485,53.94659617,143.35,143.25,29.1957]
[1642401650685,53.94659617,143.35,143.25,23.1957]
[1642401651698,57.75807038,143.35,143.25,22.9457]
[1642401651899,59.45884626,143.35,143.25,22.9457]
[1642401652699,18.24944463,143.34,143.25,22.9457]
[1642401652901,18.24944463,143.34,143.26,10.12]
[1642401653299,18.24944463,143.34,143.26,10.37]
[1642401653598,57.34049728,143.34,143.26,10.37]
[1642401653799,57.34049728,143.34,143.27,69.84]
[1642401654000,10.4691,143.34,143.27,79.96]
[1642401654200,10.4691,143.34,143.27,80.21]
[1642401655200,59.41991319,143.36,143.27,80.21]
[1642401655402,59.66991319,143.36,143.27,80.21]
[1642401656724,10.4677,143.36,143.27,80.21]
[1642401656924,14.27787421,143.38,143.27,86.21]
[1642401657129,14.27787421,143.38,143.29,69.84]
[1642401657328,14.27787421,143.38,143.29,78.719]
[1642401657527,14.27787421,143.38,143.29,78.969]
[1642401657925,10.4664,143.38,143.29,78.969]
[1642401658527,10.4664,143.38,143.29,89.4343]
[1642401660536,10.4664,143.38,143.29,95.4343]
[1642401660728,10.4664,143.38,143.29,99.5543]
[1642401660928,10.4664,143.38,143.29,105.5543]
[1642401661126,10.4664,143.38,143.29,99.5543]
[1642401662027,10.4664,143.38,143.29,95.089]
[1642401662227,10.7164,143.38,143.29,19.249]
[1642401662427,10.7164,143.38,143.29,10.37]
[1642401662731,10.4664,143.38,143.29,10.37]
[1642401663428,10.4664,143.38,143.29,80.21]
[1642401666044,10.4664,143.38,143.3,24.1579]
[1642401666248,14.27637421,143.4,143.3,24.1579]
[1642401666445,3.81147421,143.4,143.31,10.12]
[1642401666648,3.81147421,143.4,143.31,11.344263]
[1642401666943,3.81147421,143.4,143.31,11.594263]
[1642401667272,3.81147421,143.4,143.32,24.9908]
[1642401667441,3.81147421,143.4,143.33,79.96]
[1642401667643,28.36087421,143.42,143.33,79.96]
[1642401667848,28.36087421,143.42,143.34,23.1938]
[1642401668243,34.36087421,143.42,143.34,23.4438]
[1642401668445,44.82437421,143.42,143.34,23.4438]
[1642401669245,38.82437421,143.42,143.34,23.4438]
[1642401669444,28.36087421,143.42,143.34,30.6008]
[1642401669644,3.81147421,143.42,143.34,30.6008]
[1642401669847,3.81147421,143.42,143.35,69.84]
[1642401670045,3.81147421,143.42,143.35,79.96]
[1642401670245,3.81147421,143.42,143.35,80.21]
[1642401670851,3.81147421,143.42,143.35,79.96]
[1642401671249,9.81147421,143.42,143.35,79.96]
[1642401671446,20.27367421,143.44,143.35,79.96]
[1642401672149,20.52367421,143.44,143.35,79.96]
[1642401672347,16.7122,143.44,143.35,80.21]
[1642401675981,16.7122,143.44,143.36,24.4385]
[1642401676381,16.7122,143.44,143.36,24.6885]
[1642401681385,20.52367421,143.44,143.36,24.6885]
[1642401682384,20.52367421,143.44,143.3,10.4645]
[1642401682588,23.1443,143.43,143.32,10.12]
[1642401682787,10.4652,143.4,143.32,10.12]
[1642401682986,58.52583788,143.4,143.32,10.12]
[1642401683190,58.77583788,143.4,143.32,10.12]
[1642401683388,64.77583788,143.4,143.32,10.12]
[1642401683790,64.77583788,143.4,143.32,10.37]
[1642401685291,64.77583788,143.4,143.32,10.12]
[1642401686693,64.77583788,143.4,143.32,10.37]
[1642401690295,68.58731209,143.4,143.32,10.37]
[1642401692600,20.27667421,143.4,143.32,10.37]
[1642401692898,9.81147421,143.4,143.32,17.30792141]
[1642401693100,3.81147421,143.4,143.32,17.30792141]
[1642401693299,3.81147421,143.4,143.33,69.84]
[1642401693527,3.81147421,143.4,143.34,10.12]
[1642401693700,49.64711319,143.42,143.34,10.12]
[1642401693899,16.4637,143.42,143.34,10.37]
[1642401694500,16.4637,143.42,143.34,33.7569]
[1642401694901,57.08129696,143.42,143.34,33.7569]
[1642401695903,57.33129696,143.42,143.34,33.5069]
[1642401696118,57.33129696,143.42,143.34,10.12]
[1642401696510,61.14277117,143.42,143.34,10.12]
[1642401697211,61.14277117,143.42,143.34,10.37]
[1642401697912,61.14277117,143.42,143.34,16.12]
[1642401698111,57.33129696,143.42,143.34,16.12]
[1642401698812,61.14277117,143.42,143.34,16.12]
[1642401699210,61.14277117,143.42,143.34,10.12]
[1642401699712,3.97090023,143.41,143.34,10.12]
[1642401699919,10.4652,143.4,143.34,10.12]
[1642401700314,10.7152,143.4,143.34,10.12]
[1642401700716,6.25,143.4,143.34,10.12]
[1642401701038,0.25,143.4,143.34,10.12]
[1642401701439,10.06147421,143.41,143.34,10.12]
[1642401703545,20.52607421,143.41,143.34,10.12]
[1642401703941,20.27607421,143.41,143.34,10.12]
[1642401705344,20.52607421,143.41,143.34,10.12]
[1642401707145,20.52607421,143.41,143.33,23.2316]
[1642401707846,10.4661,143.39,143.33,23.2316]
[1642401708246,16.7161,143.39,143.33,23.2316]
[1642401712283,16.4661,143.39,143.33,23.4816]
[1642401712452,16.4661,143.39,143.33,23.2316]
[1642401713450,16.7161,143.39,143.33,23.2316]
[1642401716657,10.7161,143.39,143.33,23.2316]
[1642401724570,14.52757421,143.39,143.33,23.2316]
[1642401725867,14.27757421,143.39,143.33,23.4816]
[1642401727075,10.4661,143.39,143.33,23.4816]
[1642401731903,10.7161,143.39,143.33,23.2316]
[1642401732303,16.7161,143.39,143.33,23.2316]
[1642401733203,20.52757421,143.39,143.33,23.2316]
[1642401739115,16.7161,143.39,143.33,23.2316]
[1642401739814,22.4201,143.39,143.33,23.2316]
[1642401740816,22.4201,143.39,143.29,103.8994]
[1642401741014,44.08987421,143.39,143.3,93.0954]
[1642401741414,44.08987421,143.39,143.3,93.3454]
[1642401746824,43.83987421,143.39,143.3,103.4654]
[1642401748328,40.0284,143.39,143.3,103.4654]
[1642401749229,43.83987421,143.39,143.3,103.4654]
[1642401749733,44.08987421,143.39,143.3,103.4654]
[1642401750236,44.08987421,143.39,143.3,109.4654]
[1642401750428,44.08987421,143.39,143.3,103.4654]
[1642401751231,44.08987421,143.39,143.3,33.6254]
[1642401751833,44.08987421,143.39,143.3,23.5054]
[1642401753032,44.08987421,143.39,143.3,23.2554]
[1642401754261,38.62514987,143.36,143.3,23.2554]
[1642401754558,10.469,143.35,143.26,10.12]
[1642401754858,34.1766,143.35,143.27,22.5608]
[1642401755461,40.1766,143.35,143.27,22.5608]
[1642401755859,40.1766,143.35,143.24,33.2549]
[1642401756062,46.3126,143.35,143.22,10.12]
[1642401756259,1.47156462,143.32,143.22,33.7368]
[1642401756461,10.4737,143.29,143.22,33.7368]
[1642401756862,73.49844773,143.31,143.22,33.7368]
[1642401757261,73.74844773,143.31,143.22,33.7368]
[1642401757460,73.74844773,143.31,143.22,33.9868]
[1642401758160,59.49074773,143.31,143.22,33.9868]
[1642401758361,1.47156462,143.32,143.22,41.21084733]
[1642401759161,3.81147421,143.34,143.25,10.4683]
[1642401759364,3.81147421,143.34,143.26,23.0898]
[1642401759565,3.81147421,143.34,143.26,24.31384733]